{"text_format":"3","workbook":"xlsx","n_sheets":15,"sheets":["Общий","Справочник","Протокол изменений","заглавие","Часть 1","Часть 1 (2)","Часть 1 (3)","Часть 1 (4)","Часть 2","Часть 2 (2)","Часть 2 (3)","Часть 2 (4)","Часть 3","коды субсибий","коды КБК"],"not_rendered":{"images":1,"macros":1,"defined_names":56},"read":"whole","date_system":"1900"}

{"sheet":"Общий","index":0,"n_rows":50,"n_cols":4,"rows_kept":50,"merged":[[1,0,2,1],[9,0,9,1],[11,3,16,8]]}
["Система сбора отчетности Sunny","http://www.sunny1.ru"]
[]
[]
["Информация о структуре"]
["Цвет ячейки структуры"]
["Цвет заблокированной ячейки "]
["Цвет ячейки с формулой или заблокированной"]
[]
[]
["Общая информация о бланке"]
[1,2]
["Версия форм","от 11.01.2023",null,"Предупреждение:\n-  работа с файлом в других офисных пакетах, кроме как Microsoft Office не возможна.\n-  изменение цвета заблокированных ячеек, может повредить структуре файла, и обновление может пройти с ошибками, можно изменять ширину колонок и высоту строк.\n-  команды вырезать/вставить, или перетаскивание ячеек за рамку может изменить итоговые формулы."]
["Код версии","1.1.11"]
["Код формы","дк.22/вмз"]
["Статус","Изменён"]
["Код учреждения","дмш8"]
["Отчёт на дату","2023-01-01"]
["Наименование учреждения","МАУ ДО \"Детская музыкальная школа № 8\" \"РОНДО\"",null,"Ваш персональный кабинет:"]
["по ОКПО",40887958,null,"http://sunny1.ru/дк?дмш8"]
["Ф.И.О. Руководителя","Гилев Б.А."]
["Телефон руководителя",73422056235]
["Ф.И.О. исполнителя","Завьялова Ю.А.",null,"Если не работают кнопки:"]
["Должность исполнителя","Заместитель директора",null,"http://sunny1.ru/cabinet.php?view=help#macros"]
["Телефон исполнителя","89824846053"]
["Обособленное подразделение",""]
["Руководитель со стороны ЦБУ","Сысуева Ольга Леонидовна"]
["Учредитель","Администрация города Перми"]
["по ОКАТО","57401000000"]
["Наименование органа, осуществляющего полномочия учредителя","Департамент культуры и молодежной политики администрации города Перми"]
["по ОКПО, БК","12036055"]
["Глава по БК",924]
["Единица измерения по ОКЕИ",383]
[]
[]
["Дополнительные функции"]
{"$rows_empty":9}
["Формы в отчёте"]
["Общий","переход\""]
["заглавие","переход\""]
["Часть 1","переход\""]
["Часть 2","переход\""]
["Часть 3","переход\""]

{"sheet":"Справочник","index":1,"n_rows":64,"n_cols":1,"rows_kept":64,"hidden":true}
["Поставщики"]
["Автозавод.48"]
["Актив Финанс Групп"]
["Библ.Кузьм."]
["ГБУЗ \"Пермская городская клиническая больница №3\""]
["ГОЛ-Д"]
["Дворец Молодежи"]
["ДШИ №13"]
["МАУК \"ПГДК им. им. А.Г.Солдатова"]
["МАУК ЦД Альянс"]
["МОУ ДОД СОШ №34"]
["МУЗ ГБ № 11"]
["ОАО Новогор-Прикамье"]
["ОМБ минус"]
["ООО \"Артель Урала\""]
["ООО \"ВЕКТОР+\""]
["ООО \"Новогор-Прикамье\""]
["ООО \"УК \"Мой дом\""]
["ООО \"УК \"Моторостроитель\""]
["ООО \"УК \"Пермская модель комфорта\""]
["ООО \"УК \"ЭксКом\""]
["ООО \"УК\" Жилкомцентр"]
["ООО \"УК\" ПРОФИ-ДОМ"]
["ООО \"Управдом\""]
["ООО Артель Урала"]
["ООО Гарант"]
["ООО Дорстройтранс"]
["ООО Жилсервис"]
["ООО Камадорсервис"]
["ООО Комфорт Прикамья"]
["ООО Крона"]
["ООО Наш дом"]
["ООО Новая городская инфраструктура Прикамья"]
["ООО Новогор-Прикамья"]
["ООО Профи дом"]
["ООО РЭП"]
["ООО Техноресурс"]
["ООО УК \"ПМК\""]
["ООО УК \"ТехКомфорт\""]
["ООО УК Вектор"]
["ООО УК ПМК"]
["ООО УК Техком"]
["ООО УК Техкомфорт"]
["ООО Экском"]
["ООО\"Уралмонтажстрой\""]
["Пермводоканал"]
["Пермская модель комфорта"]
["ПКФилар"]
["ПМК"]
["Профи М"]
["ТСЖ \"ВЕСНА\""]
["ТСЖ Чернышевского"]
["УК Домком"]
["УК Жилкомцентр"]
["УК Код"]
["УК Мастер комфорта"]
["УК Мой дом"]
["УК Моторостроитель"]
["УК Нартекс"]
["УК Наш микрорайон"]
["УК Сантос"]
["УК Техком"]
["УК Экском"]
["ЦК Солдатова"]

{"sheet":"Протокол изменений","index":2,"n_rows":7,"n_cols":8,"rows_kept":7,"hidden":true,"merged":[[5,0,5,7]]}
[]
[]
[]
[]
[]
["Протокол изменений"]
["Форма","Строка","Графа","Старое значение","Новое значение","Текущее значение","Дата и время","Специалист"]

{"sheet":"заглавие","index":3,"n_rows":19,"n_cols":6,"rows_kept":19,"merged":[[3,0,3,5],[4,0,4,5],[5,0,5,5],[6,0,6,5],[11,4,12,4],[11,5,12,5],[12,2,12,3],[13,2,13,3],[14,2,14,3],[15,2,15,3],[16,2,16,3],[16,5,17,5],[18,2,18,3]]}
[]
[]
[]
["ОТЧЕТ"]
["о выполнении муниципального задания на оказание"]
["муниципальных услуг (выполнение работ) N ________  "]
["на 2022 год и плановый период 2023 и 2024 годов"]
[]
[{"$nulls":4},"Форма","Коды"]
[{"$nulls":4},"по ОКУД","0506501"]
[{"$nulls":3},"на \"01\" января 2023 г.","Дата","2023-01-01"]
[{"$nulls":4},"Код по\nсводному реестру ",57308552]
[null,"Наименование муниципального учреждения"," Муниципальное автономное учреждение дополнительного образования города Перми  \"Детская музыкальная школа № 8 \"РОНДО\""]
[null,"Виды деятельности муниципального учреждения","Образование в области культуры",null,"По ОКВЭД","85.41.2"]
[null,null,"Образование дополнительное детей и взрослых",null,"По ОКВЭД","85.41"]
[{"$nulls":4},"По ОКВЭД"]
[null,null,"(указываются виды деятельности муниципального учреждения, по которым ему утверждено муниципальное задание)"]
[null,"Периодичность","   Ежеквартально"]
[null,null,"(указывается в соответствии с периодичностью представления отчета о выполнении муниципального задания, установленной в муниципальном задании)"]

{"sheet":"Часть 1","index":4,"n_rows":37,"n_cols":16,"rows_kept":37,"merged":[[0,0,0,15],[4,0,4,2],[4,7,5,8],[4,9,5,9],[5,0,5,5],[6,0,6,2],[7,0,7,2],[8,0,8,7],[9,0,9,2],[10,0,10,2],[11,0,11,7],[13,0,15,0],[13,1,14,3],[13,4,14,5],[13,6,13,15],[14,6,15,6],[14,7,14,8],[14,9,14,11],[14,12,15,12],[14,13,15,13],[14,14,15,15],[16,14,16,15],[17,0,20,0],[17,1,20,1],[17,2,20,2],[17,3,20,3],[17,4,20,4],[17,5,20,5],[17,14,17,15],[18,14,18,15],[19,14,19,15],[20,14,20,15],[32,0,34,0],[32,1,33,3],[32,4,33,5],[32,6,32,14],[32,15,34,15],[33,6,34,6],[33,7,33,8],[33,9,33,11],[33,12,34,12],[33,13,34,13],[33,14,34,14]]}
["Часть 1. Сведения об оказываемых муниципальных услугах"]
[]
[{"$nulls":7},"Раздел _1___"]
[]
["1. Наименование муниципальной услуги:",{"$nulls":6},"Код по общероссийскому базовому перечню или региональному перечню",null,"42.Г42.0"]
["Реализация дополнительных общеразвивающих программ"]
["2. Категории потребителей муниципальной услуги:"]
["Физические лица"]
["3. Сведения о фактическом достижении показателей, характеризующих объем и качество муниципальной услуги"]
["2. Категории потребителей муниципальной услуги:"]
[]
["3. Сведения о фактическом достижении показателей, характеризующих объем и качество муниципальной услуги"]
["3.1. Сведения о фактическом достижении показателей, характеризующих качество муниципальной услуги"]
["Уникальный номер реестровой записи","Показатель, характеризующий содержание муниципальной услуги",null,null,"Показатель, характеризующий условия (формы) оказания муниципальной услуги",null,"Показатель качества муниципальной услуги"]
[{"$nulls":6},"наименование показателя","единица измерения",null,"значение",null,null,"допустимое (возможное) отклонение ","отклонение, превышающее допустимое (возможное) отклонение ","причина отклонения"]
[null,"наименование показателя","наименование показателя","наименование показателя","наименование показателя","наименование показателя",null,"наименование","код по ОКЕИ ","утверждено в муниципальном задании на год ","утверждено в муниципальном задании на отчетную дату ","исполнено на отчетную дату "]
[1,2,3,4,5,6,7,8,9,10,11,12,13,14,15]
["804200О.99.0.ББ52АЕ76000","Художественной направленности",null,null,"Очная",null,"1. Доля детей, осваивающих дополнительные образовательные программы в образовательном учреждении","%",null,7,7,7,{"$f":"J18*5%","v":{"v":0.35000000000000003,"d":"0"}},{"$f":"IF((J18-M18-L18)<0,0,J18-M18-L18)","v":0}]
[{"$nulls":6},"2. Доля родителей (законных представителей), удовлетворенных условиями и качеством предоставляемой образовательной услуги","%",null,100,100,100,{"$f":"J19*5%","v":5},{"$f":"IF((J19-M19-L19)<0,0,J19-M19-L19)","v":0}]
[{"$nulls":6},"3. Доля выпускников, продолживших обучение по специальности, от общего количества выпускников","%",null,9,9,9,{"$f":"J20*5%","v":{"v":0.45,"d":"0"}},{"$f":"IF((J20-M20-L20)<0,0,J20-M20-L20)","v":0}]
[{"$nulls":6},"4. Доля получателей услуги на конец учебного года от количества получателей услуги на начало учебного года","%",null,100,100,100,{"$f":"J21*5%","v":5},{"$f":"IF((J21-M21-L21)<0,0,J21-M21-L21)","v":0}]
{"$rows_empty":10}
["3.2. Сведения о фактическом достижении показателей, характеризующих объем муниципальной услуги"]
["Уникальный номер реестровой записи","Показатель, характеризующий содержание муниципальной услуги",null,null,"Показатель, характеризующий условия (формы) оказания муниципальной услуги",null,"Показатель объема муниципальной услуги",{"$nulls":8},"Размер платы (цена, тариф)"]
[{"$nulls":6},"наименование показателя","единица измерения",null,"значение",null,null,"допустимое (возможное) отклонение ","отклонение, превышающее допустимое (возможное) отклонение ","причина отклонения"]
[null,"наименование показателя","наименование показателя","наименование показателя","наименование показателя","наименование показателя",null,"наименование","код по ОКЕИ ","утверждено в муниципальном задании на год ","утверждено в муниципальном задании на отчетную дату ","исполнено на отчетную дату "]
[1,2,3,4,5,6,7,8,9,10,11,12,13,14,15,16]
["804200О.990.ББ52АЕ76000","Художественной направленности",null,null,"Очная",null,"Количество человеко-часов","Человеко-час",null,9150,9150,9150,{"$f":"J37*5%","v":{"v":457.5,"d":"458"}},{"$f":"IF((J37-M37-L37)<0,0,J37-M37-L37)","v":0}]

{"sheet":"Часть 1 (2)","index":5,"n_rows":52,"n_cols":16,"rows_kept":52,"merged":[[0,0,0,15],[4,0,4,2],[4,7,5,8],[4,9,5,9],[5,0,5,5],[6,0,6,2],[7,0,7,2],[8,0,8,7],[9,0,9,2],[10,0,10,2],[11,0,11,7],[13,0,15,0],[13,1,14,3],[13,4,14,5],[13,6,13,15],[14,6,15,6],[14,7,14,8],[14,9,14,11],[14,12,15,12],[14,13,15,13],[14,14,15,15],[16,14,16,15],[17,0,20,0],[17,1,20,1],[17,2,20,2],[17,3,20,3],[17,4,20,4],[17,5,20,5],[17,14,17,15],[18,14,18,15],[19,14,19,15],[20,14,20,15],[21,0,24,0],[21,1,24,1],[21,2,24,2],[21,3,24,3],[21,4,24,4],[21,5,24,5],[21,14,21,15],[22,14,22,15],[23,14,23,15],[24,14,24,15],[25,0,28,0],[25,1,28,1],[25,2,28,2],[25,3,28,3],[25,4,28,4],[25,5,28,5],[25,14,25,15],[26,14,26,15],[27,14,27,15],[28,14,28,15],[29,0,32,0],[29,1,32,1],[29,2,32,2],[29,3,32,3],[29,4,32,4],[29,5,32,5],[29,14,29,15],[30,14,30,15],[31,14,31,15],[32,14,32,15],[44,0,46,0],[44,1,45,3],[44,4,45,5],[44,6,44,14],[44,15,46,15],[45,6,46,6],[45,7,45,8],[45,9,45,11],[45,12,46,12],[45,13,46,13],[45,14,46,14]]}
["Часть 1. Сведения об оказываемых муниципальных услугах"]
[]
[{"$nulls":7},"Раздел _2___"]
[]
["1. Наименование муниципальной услуги:",{"$nulls":6},"Код по общероссийскому базовому перечню или региональному перечню",null,"42.Д44.0"]
["Реализация дополнительных предпрофессиональных программ в области искусств "]
["2. Категории потребителей муниципальной услуги:"]
["Физические лица"]
["3. Сведения о фактическом достижении показателей, характеризующих объем и качество муниципальной услуги"]
["2. Категории потребителей муниципальной услуги:"]
[]
["3. Сведения о фактическом достижении показателей, характеризующих объем и качество муниципальной услуги"]
["3.1. Сведения о фактическом достижении показателей, характеризующих качество муниципальной услуги"]
["Уникальный номер реестровой записи","Показатель, характеризующий содержание муниципальной услуги",null,null,"Показатель, характеризующий условия (формы) оказания муниципальной услуги",null,"Показатель качества муниципальной услуги"]
[{"$nulls":6},"наименование показателя","единица измерения",null,"значение",null,null,"допустимое (возможное) отклонение ","отклонение, превышающее допустимое (возможное) отклонение ","причина отклонения"]
[null,"наименование показателя","наименование показателя","наименование показателя","наименование показателя","наименование показателя",null,"наименование","код по ОКЕИ ","утверждено в муниципальном задании на год ","утверждено в муниципальном задании на отчетную дату ","исполнено на отчетную дату "]
[1,2,3,4,5,6,7,8,9,10,11,12,13,14,15]
["802112О.99.0.ББ55АА48000","Фортепиано",null,null,"Очная",null,"1. Доля детей, осваивающих дополнительные образовательные программы в образовательном учреждении","%",null,42,42,41,{"$f":"J18*5%","v":{"v":2.1,"d":"2"}},{"$f":"IF((J18-M18-L18)<0,0,J18-M18-L18)","v":0}]
[{"$nulls":6},"2. Доля родителей (законных представителей), удовлетворенных условиями и качеством предоставляемой образовательной услуги","%",null,100,100,100,{"$f":"J19*5%","v":5},{"$f":"IF((J19-M19-L19)<0,0,J19-M19-L19)","v":0}]
[{"$nulls":6},"3. Доля получателей услуги на конец учебного года от количества получателей услуги на начало учебного года","%",null,100,100,100,{"$f":"J20*5%","v":5},{"$f":"IF((J20-M20-L20)<0,0,J20-M20-L20)","v":0}]
[{"$nulls":12},{"$f":"J21*5%","v":0},{"$f":"IF((J21-M21-L21)<0,0,J21-M21-L21)","v":0}]
["802112О.99.0.ББ55АБ04000","Струнные инструменты",null,null,"Очная",null,"1. Доля детей, осваивающих дополнительные образовательные программы в образовательном учреждении","%",null,18,18,17,{"$f":"J22*5%","v":{"v":0.9,"d":"1"}},{"$f":"IF((J22-M22-L22)<0,0,J22-M22-L22)","v":{"v":0.10000000000000142,"d":"0"}}]
[{"$nulls":6},"2. Доля родителей (законных представителей), удовлетворенных условиями и качеством предоставляемой образовательной услуги","%",null,100,100,100,{"$f":"J23*5%","v":5},{"$f":"IF((J23-M23-L23)<0,0,J23-M23-L23)","v":0}]
[{"$nulls":6},"3. Доля получателей услуги на конец учебного года от количества получателей услуги на начало учебного года","%",null,100,100,100,{"$f":"J24*5%","v":5},{"$f":"IF((J24-M24-L24)<0,0,J24-M24-L24)","v":0}]
[{"$nulls":12},{"$f":"J25*5%","v":0},{"$f":"IF((J25-M25-L25)<0,0,J25-M25-L25)","v":0}]
["802112О.99.0.ББ55АБ60000","Духовые и ударные инструменты",null,null,"Очная",null,"1. Доля детей, осваивающих дополнительные образовательные программы в образовательном учреждении","%",null,12,12,13,{"$f":"J26*5%","v":{"v":0.6000000000000001,"d":"1"}},{"$f":"IF((J26-M26-L26)<0,0,J26-M26-L26)","v":0}]
[{"$nulls":6},"2. Доля родителей (законных представителей), удовлетворенных условиями и качеством предоставляемой образовательной услуги","%",null,100,100,100,{"$f":"J27*5%","v":5},{"$f":"IF((J27-M27-L27)<0,0,J27-M27-L27)","v":0}]
[{"$nulls":6},"3. Доля получателей услуги на конец учебного года от количества получателей услуги на начало учебного года","%",null,100,100,100,{"$f":"J28*5%","v":5},{"$f":"IF((J28-M28-L28)<0,0,J28-M28-L28)","v":0}]
[{"$nulls":12},{"$f":"J29*5%","v":0},{"$f":"IF((J29-M29-L29)<0,0,J29-M29-L29)","v":0}]
["802112О.99.0.ББ55АВ16000","Народные инструменты",null,null,"Очная",null,"1. Доля детей, осваивающих дополнительные образовательные программы в образовательном учреждении","%",null,21,21,22,{"$f":"J30*5%","v":{"v":1.05,"d":"1"}},{"$f":"IF((J30-M30-L30)<0,0,J30-M30-L30)","v":0}]
[{"$nulls":6},"2. Доля родителей (законных представителей), удовлетворенных условиями и качеством предоставляемой образовательной услуги","%",null,100,100,100,{"$f":"J31*5%","v":5},{"$f":"IF((J31-M31-L31)<0,0,J31-M31-L31)","v":0}]
[{"$nulls":6},"3. Доля получателей услуги на конец учебного года от количества получателей услуги на начало учебного года","%",null,100,100,100,{"$f":"J32*5%","v":5},{"$f":"IF((J32-M32-L32)<0,0,J32-M32-L32)","v":0}]
[{"$nulls":12},{"$f":"J33*5%","v":0},{"$f":"IF((J33-M33-L33)<0,0,J33-M33-L33)","v":0}]
{"$rows_empty":10}
["3.2. Сведения о фактическом достижении показателей, характеризующих объем муниципальной услуги"]
["Уникальный номер реестровой записи","Показатель, характеризующий содержание муниципальной услуги",null,null,"Показатель, характеризующий условия (формы) оказания муниципальной услуги",null,"Показатель объема муниципальной услуги",{"$nulls":8},"Размер платы (цена, тариф)"]
[{"$nulls":6},"наименование показателя","единица измерения",null,"значение",null,null,"допустимое (возможное) отклонение ","отклонение, превышающее допустимое (возможное) отклонение ","причина отклонения"]
[null,"наименование показателя","наименование показателя","наименование показателя","наименование показателя","наименование показателя",null,"наименование","код по ОКЕИ ","утверждено в муниципальном задании на год ","утверждено в муниципальном задании на отчетную дату ","исполнено на отчетную дату "]
[1,2,3,4,5,6,7,8,9,10,11,12,13,14,15,16]
["802112О.99.0.ББ55АА48000","Фортепиано",null,null,"Очная",null,"Количество человеко-часов","Человеко-час",null,55266,55266,54900,{"$f":"J49*5%","v":{"v":2763.3,"d":"2,763"}},{"$f":"IF((J49-M49-L49)<0,0,J49-M49-L49)","v":0}]
["802112О.99.0.ББ55АБ04000","Струнные инструменты",null,null,"Очная",null,"Количество человеко-часов","Человеко-час",null,23424,23424,23058,{"$f":"J50*5%","v":{"v":1171.2,"d":"1,171"}},{"$f":"IF((J50-M50-L50)<0,0,J50-M50-L50)","v":0}]
["802112О.99.0.ББ55АБ60000","Духовые и ударные инструменты",null,null,"Очная",null,"Количество человеко-часов","Человеко-час",null,15372,15372,15738,{"v":768.6,"d":"769"},0]
["802112О.99.0.ББ55АВ16000","Народные инструменты",null,null,"Очная",null,"Количество человеко-часов","Человеко-час",null,28548,28548,28914,{"v":1427.4,"d":"1,427"},0]

{"sheet":"Часть 1 (3)","index":6,"n_rows":37,"n_cols":16,"rows_kept":37,"hidden":true,"merged":[[0,0,0,15],[4,0,4,2],[4,7,5,8],[4,9,5,9],[5,0,5,5],[6,0,6,2],[7,0,7,2],[8,0,8,7],[9,0,9,2],[10,0,10,2],[11,0,11,7],[13,0,15,0],[13,1,14,3],[13,4,14,5],[13,6,13,15],[14,6,15,6],[14,7,14,8],[14,9,14,11],[14,12,15,12],[14,13,15,13],[14,14,15,15],[16,14,16,15],[17,0,20,0],[17,1,20,1],[17,2,20,2],[17,3,20,3],[17,4,20,4],[17,5,20,5],[17,14,17,15],[18,14,18,15],[19,14,19,15],[20,14,20,15],[32,0,34,0],[32,1,33,3],[32,4,33,5],[32,6,32,14],[32,15,34,15],[33,6,34,6],[33,7,33,8],[33,9,33,11],[33,12,34,12],[33,13,34,13],[33,14,34,14]]}
["Часть 1. Сведения об оказываемых муниципальных услугах"]
[]
[{"$nulls":7},"Раздел ____"]
[]
["1. Наименование муниципальной услуги:",{"$nulls":6},"Код по общероссийскому базовому перечню или региональному перечню"]
[]
["2. Категории потребителей муниципальной услуги:"]
[]
["3. Сведения о фактическом достижении показателей, характеризующих объем и качество муниципальной услуги"]
["2. Категории потребителей муниципальной услуги:"]
[]
["3. Сведения о фактическом достижении показателей, характеризующих объем и качество муниципальной услуги"]
["3.1. Сведения о фактическом достижении показателей, характеризующих качество муниципальной услуги"]
["Уникальный номер реестровой записи","Показатель, характеризующий содержание муниципальной услуги",null,null,"Показатель, характеризующий условия (формы) оказания муниципальной услуги",null,"Показатель качества муниципальной услуги"]
[{"$nulls":6},"наименование показателя","единица измерения",null,"значение",null,null,"допустимое (возможное) отклонение ","отклонение, превышающее допустимое (возможное) отклонение ","причина отклонения"]
[null,"наименование показателя","наименование показателя","наименование показателя","наименование показателя","наименование показателя",null,"наименование","код по ОКЕИ ","утверждено в муниципальном задании на год ","утверждено в муниципальном задании на отчетную дату ","исполнено на отчетную дату "]
[1,2,3,4,5,6,7,8,9,10,11,12,13,14,15]
[{"$nulls":12},{"$f":"J18*5%","v":0},{"$f":"IF((J18-M18-L18)<0,0,J18-M18-L18)","v":0}]
[{"$nulls":12},{"$f":"J19*5%","v":0},{"$f":"IF((J19-M19-L19)<0,0,J19-M19-L19)","v":0}]
[{"$nulls":12},{"$f":"J20*5%","v":0},{"$f":"IF((J20-M20-L20)<0,0,J20-M20-L20)","v":0}]
[{"$nulls":12},{"$f":"J21*5%","v":0},{"$f":"IF((J21-M21-L21)<0,0,J21-M21-L21)","v":0}]
{"$rows_empty":10}
["3.2. Сведения о фактическом достижении показателей, характеризующих объем муниципальной услуги"]
["Уникальный номер реестровой записи","Показатель, характеризующий содержание муниципальной услуги",null,null,"Показатель, характеризующий условия (формы) оказания муниципальной услуги",null,"Показатель объема муниципальной услуги",{"$nulls":8},"Размер платы (цена, тариф)"]
[{"$nulls":6},"наименование показателя","единица измерения",null,"значение",null,null,"допустимое (возможное) отклонение ","отклонение, превышающее допустимое (возможное) отклонение ","причина отклонения"]
[null,"наименование показателя","наименование показателя","наименование показателя","наименование показателя","наименование показателя",null,"наименование","код по ОКЕИ ","утверждено в муниципальном задании на год ","утверждено в муниципальном задании на отчетную дату ","исполнено на отчетную дату "]
[1,2,3,4,5,6,7,8,9,10,11,12,13,14,15,16]
[{"$nulls":12},{"$f":"J37*5%","v":0},{"$f":"IF((J37-M37-L37)<0,0,J37-M37-L37)","v":0}]

{"sheet":"Часть 1 (4)","index":7,"n_rows":37,"n_cols":16,"rows_kept":37,"hidden":true,"merged":[[0,0,0,15],[4,0,4,2],[4,7,5,8],[4,9,5,9],[5,0,5,5],[6,0,6,2],[7,0,7,2],[8,0,8,7],[9,0,9,2],[10,0,10,2],[11,0,11,7],[13,0,15,0],[13,1,14,3],[13,4,14,5],[13,6,13,15],[14,6,15,6],[14,7,14,8],[14,9,14,11],[14,12,15,12],[14,13,15,13],[14,14,15,15],[16,14,16,15],[17,0,20,0],[17,1,20,1],[17,2,20,2],[17,3,20,3],[17,4,20,4],[17,5,20,5],[17,14,17,15],[18,14,18,15],[19,14,19,15],[20,14,20,15],[32,0,34,0],[32,1,33,3],[32,4,33,5],[32,6,32,14],[32,15,34,15],[33,6,34,6],[33,7,33,8],[33,9,33,11],[33,12,34,12],[33,13,34,13],[33,14,34,14]]}
["Часть 1. Сведения об оказываемых муниципальных услугах"]
[]
[{"$nulls":7},"Раздел ____"]
[]
["1. Наименование муниципальной услуги:",{"$nulls":6},"Код по общероссийскому базовому перечню или региональному перечню"]
[]
["2. Категории потребителей муниципальной услуги:"]
[]
["3. Сведения о фактическом достижении показателей, характеризующих объем и качество муниципальной услуги"]
["2. Категории потребителей муниципальной услуги:"]
[]
["3. Сведения о фактическом достижении показателей, характеризующих объем и качество муниципальной услуги"]
["3.1. Сведения о фактическом достижении показателей, характеризующих качество муниципальной услуги"]
["Уникальный номер реестровой записи","Показатель, характеризующий содержание муниципальной услуги",null,null,"Показатель, характеризующий условия (формы) оказания муниципальной услуги",null,"Показатель качества муниципальной услуги"]
[{"$nulls":6},"наименование показателя","единица измерения",null,"значение",null,null,"допустимое (возможное) отклонение ","отклонение, превышающее допустимое (возможное) отклонение ","причина отклонения"]
[null,"наименование показателя","наименование показателя","наименование показателя","наименование показателя","наименование показателя",null,"наименование","код по ОКЕИ ","утверждено в муниципальном задании на год ","утверждено в муниципальном задании на отчетную дату ","исполнено на отчетную дату "]
[1,2,3,4,5,6,7,8,9,10,11,12,13,14,15]
[{"$nulls":12},{"$f":"J18*5%","v":0},{"$f":"IF((J18-M18-L18)<0,0,J18-M18-L18)","v":0}]
[{"$nulls":12},{"$f":"J19*5%","v":0},{"$f":"IF((J19-M19-L19)<0,0,J19-M19-L19)","v":0}]
[{"$nulls":12},{"$f":"J20*5%","v":0},{"$f":"IF((J20-M20-L20)<0,0,J20-M20-L20)","v":0}]
[{"$nulls":12},{"$f":"J21*5%","v":0},{"$f":"IF((J21-M21-L21)<0,0,J21-M21-L21)","v":0}]
{"$rows_empty":10}
["3.2. Сведения о фактическом достижении показателей, характеризующих объем муниципальной услуги"]
["Уникальный номер реестровой записи","Показатель, характеризующий содержание муниципальной услуги",null,null,"Показатель, характеризующий условия (формы) оказания муниципальной услуги",null,"Показатель объема муниципальной услуги",{"$nulls":8},"Размер платы (цена, тариф)"]
[{"$nulls":6},"наименование показателя","единица измерения",null,"значение",null,null,"допустимое (возможное) отклонение ","отклонение, превышающее допустимое (возможное) отклонение ","причина отклонения"]
[null,"наименование показателя","наименование показателя","наименование показателя","наименование показателя","наименование показателя",null,"наименование","код по ОКЕИ ","утверждено в муниципальном задании на год ","утверждено в муниципальном задании на отчетную дату ","исполнено на отчетную дату "]
[1,2,3,4,5,6,7,8,9,10,11,12,13,14,15,16]
[{"$nulls":12},{"$f":"J37*5%","v":0},{"$f":"IF((J37-M37-L37)<0,0,J37-M37-L37)","v":0}]

{"sheet":"Часть 2","index":8,"n_rows":37,"n_cols":16,"rows_kept":37,"merged":[[0,0,0,15],[4,0,4,2],[4,7,5,8],[4,9,5,9],[5,0,5,5],[6,0,6,2],[7,0,7,2],[8,0,8,7],[9,0,9,2],[10,0,10,2],[11,0,11,7],[13,0,15,0],[13,1,14,3],[13,4,14,5],[13,6,13,15],[14,6,15,6],[14,7,14,8],[14,9,14,11],[14,12,15,12],[14,13,15,13],[14,14,15,15],[16,14,16,15],[17,0,20,0],[17,1,20,1],[17,2,20,2],[17,3,20,3],[17,4,20,4],[17,5,20,5],[17,14,17,15],[18,14,18,15],[19,14,19,15],[20,14,20,15],[32,0,34,0],[32,1,33,3],[32,4,33,5],[32,6,32,14],[32,15,34,15],[33,6,34,6],[33,7,33,8],[33,9,33,11],[33,12,34,12],[33,13,34,13],[33,14,34,14]]}
["Часть 2. Сведения о выполняемых работах"]
[]
[{"$nulls":7},"Раздел ____"]
[]
["1. Наименование работы:",{"$nulls":6},"Код по общероссийскому базовому перечню или региональному перечню"]
[]
["2. Категории потребителей работы:"]
[]
["3. Сведения о фактическом достижении показателей, характеризующих объем и качество муниципальной услуги"]
["2. Категории потребителей муниципальной услуги:"]
[]
["3. Сведения о фактическом достижении показателей, характеризующих объем и качество работы"]
["3.1. Сведения о фактическом достижении показателей, характеризующих качество работы"]
["Уникальный номер реестровой записи","Показатель, характеризующий содержание работы",null,null,"Показатель, характеризующий условия (формы) выполнения работы",null,"Показатель качества работы"]
[{"$nulls":6},"наименование показателя","единица измерения",null,"значение",null,null,"допустимое (возможное) отклонение ","отклонение, превышающее допустимое (возможное) отклонение ","причина отклонения"]
[null,"наименование показателя","наименование показателя","наименование показателя","наименование показателя","наименование показателя",null,"наименование","код по ОКЕИ ","утверждено в муниципальном задании на год ","утверждено в муниципальном задании на отчетную дату ","исполнено на отчетную дату "]
[1,2,3,4,5,6,7,8,9,10,11,12,13,14,15]
[{"$nulls":12},{"$f":"J18*5%","v":0},{"$f":"IF((J18-M18-L18)<0,0,J18-M18-L18)","v":0}]
[{"$nulls":12},{"$f":"J19*5%","v":0},{"$f":"IF((J19-M19-L19)<0,0,J19-M19-L19)","v":0}]
[{"$nulls":12},{"$f":"J20*5%","v":0},{"$f":"IF((J20-M20-L20)<0,0,J20-M20-L20)","v":0}]
[{"$nulls":12},{"$f":"J21*5%","v":0},{"$f":"IF((J21-M21-L21)<0,0,J21-M21-L21)","v":0}]
{"$rows_empty":10}
["3.2. Сведения о фактическом достижении показателей, характеризующих объем муниципальной услуги"]
["Уникальный номер реестровой записи","Показатель, характеризующий содержание работы",null,null,"Показатель, характеризующий условия (формы) выполнения работы",null,"Показатель объема работы",{"$nulls":8},"Размер платы (цена, тариф)"]
[{"$nulls":6},"наименование показателя","единица измерения",null,"значение",null,null,"допустимое (возможное) отклонение ","отклонение, превышающее допустимое (возможное) отклонение ","причина отклонения"]
[null,"наименование показателя","наименование показателя","наименование показателя","наименование показателя","наименование показателя",null,"наименование","код по ОКЕИ ","утверждено в муниципальном задании на год ","утверждено в муниципальном задании на отчетную дату ","исполнено на отчетную дату "]
[1,2,3,4,5,6,7,8,9,10,11,12,13,14,15,16]
[{"$nulls":12},{"$f":"J37*5%","v":0},{"$f":"IF((J37-M37-L37)<0,0,J37-M37-L37)","v":0}]

{"sheet":"Часть 2 (2)","index":9,"n_rows":37,"n_cols":16,"rows_kept":37,"hidden":true,"merged":[[0,0,0,15],[4,0,4,2],[4,7,5,8],[4,9,5,9],[5,0,5,5],[6,0,6,2],[7,0,7,2],[8,0,8,7],[9,0,9,2],[10,0,10,2],[11,0,11,7],[13,0,15,0],[13,1,14,3],[13,4,14,5],[13,6,13,15],[14,6,15,6],[14,7,14,8],[14,9,14,11],[14,12,15,12],[14,13,15,13],[14,14,15,15],[16,14,16,15],[17,0,20,0],[17,1,20,1],[17,2,20,2],[17,3,20,3],[17,4,20,4],[17,5,20,5],[17,14,17,15],[18,14,18,15],[19,14,19,15],[20,14,20,15],[32,0,34,0],[32,1,33,3],[32,4,33,5],[32,6,32,14],[32,15,34,15],[33,6,34,6],[33,7,33,8],[33,9,33,11],[33,12,34,12],[33,13,34,13],[33,14,34,14]]}
["Часть 2. Сведения о выполняемых работах"]
[]
[{"$nulls":7},"Раздел ____"]
[]
["1. Наименование работы:",{"$nulls":6},"Код по общероссийскому базовому перечню или региональному перечню"]
[]
["2. Категории потребителей работы:"]
[]
["3. Сведения о фактическом достижении показателей, характеризующих объем и качество муниципальной услуги"]
["2. Категории потребителей муниципальной услуги:"]
[]
["3. Сведения о фактическом достижении показателей, характеризующих объем и качество работы"]
["3.1. Сведения о фактическом достижении показателей, характеризующих качество работы"]
["Уникальный номер реестровой записи","Показатель, характеризующий содержание работы",null,null,"Показатель, характеризующий условия (формы) выполнения работы",null,"Показатель качества работы"]
[{"$nulls":6},"наименование показателя","единица измерения",null,"значение",null,null,"допустимое (возможное) отклонение ","отклонение, превышающее допустимое (возможное) отклонение ","причина отклонения"]
[null,"наименование показателя","наименование показателя","наименование показателя","наименование показателя","наименование показателя",null,"наименование","код по ОКЕИ ","утверждено в муниципальном задании на год ","утверждено в муниципальном задании на отчетную дату ","исполнено на отчетную дату "]
[1,2,3,4,5,6,7,8,9,10,11,12,13,14,15]
[{"$nulls":12},{"$f":"J18*5%","v":0},{"$f":"IF((J18-M18-L18)<0,0,J18-M18-L18)","v":0}]
[{"$nulls":12},{"$f":"J19*5%","v":0},{"$f":"IF((J19-M19-L19)<0,0,J19-M19-L19)","v":0}]
[{"$nulls":12},{"$f":"J20*5%","v":0},{"$f":"IF((J20-M20-L20)<0,0,J20-M20-L20)","v":0}]
[{"$nulls":12},{"$f":"J21*5%","v":0},{"$f":"IF((J21-M21-L21)<0,0,J21-M21-L21)","v":0}]
{"$rows_empty":10}
["3.2. Сведения о фактическом достижении показателей, характеризующих объем муниципальной услуги"]
["Уникальный номер реестровой записи","Показатель, характеризующий содержание работы",null,null,"Показатель, характеризующий условия (формы) выполнения работы",null,"Показатель объема работы",{"$nulls":8},"Размер платы (цена, тариф)"]
[{"$nulls":6},"наименование показателя","единица измерения",null,"значение",null,null,"допустимое (возможное) отклонение ","отклонение, превышающее допустимое (возможное) отклонение ","причина отклонения"]
[null,"наименование показателя","наименование показателя","наименование показателя","наименование показателя","наименование показателя",null,"наименование","код по ОКЕИ ","утверждено в муниципальном задании на год ","утверждено в муниципальном задании на отчетную дату ","исполнено на отчетную дату "]
[1,2,3,4,5,6,7,8,9,10,11,12,13,14,15,16]
[{"$nulls":12},{"$f":"J37*5%","v":0},{"$f":"IF((J37-M37-L37)<0,0,J37-M37-L37)","v":0}]

{"sheet":"Часть 2 (3)","index":10,"n_rows":37,"n_cols":16,"rows_kept":37,"hidden":true,"merged":[[0,0,0,15],[4,0,4,2],[4,7,5,8],[4,9,5,9],[5,0,5,5],[6,0,6,2],[7,0,7,2],[8,0,8,7],[9,0,9,2],[10,0,10,2],[11,0,11,7],[13,0,15,0],[13,1,14,3],[13,4,14,5],[13,6,13,15],[14,6,15,6],[14,7,14,8],[14,9,14,11],[14,12,15,12],[14,13,15,13],[14,14,15,15],[16,14,16,15],[17,0,20,0],[17,1,20,1],[17,2,20,2],[17,3,20,3],[17,4,20,4],[17,5,20,5],[17,14,17,15],[18,14,18,15],[19,14,19,15],[20,14,20,15],[32,0,34,0],[32,1,33,3],[32,4,33,5],[32,6,32,14],[32,15,34,15],[33,6,34,6],[33,7,33,8],[33,9,33,11],[33,12,34,12],[33,13,34,13],[33,14,34,14]]}
["Часть 2. Сведения о выполняемых работах"]
[]
[{"$nulls":7},"Раздел ____"]
[]
["1. Наименование работы:",{"$nulls":6},"Код по общероссийскому базовому перечню или региональному перечню"]
[]
["2. Категории потребителей работы:"]
[]
["3. Сведения о фактическом достижении показателей, характеризующих объем и качество муниципальной услуги"]
["2. Категории потребителей муниципальной услуги:"]
[]
["3. Сведения о фактическом достижении показателей, характеризующих объем и качество работы"]
["3.1. Сведения о фактическом достижении показателей, характеризующих качество работы"]
["Уникальный номер реестровой записи","Показатель, характеризующий содержание работы",null,null,"Показатель, характеризующий условия (формы) выполнения работы",null,"Показатель качества работы"]
[{"$nulls":6},"наименование показателя","единица измерения",null,"значение",null,null,"допустимое (возможное) отклонение ","отклонение, превышающее допустимое (возможное) отклонение ","причина отклонения"]
[null,"наименование показателя","наименование показателя","наименование показателя","наименование показателя","наименование показателя",null,"наименование","код по ОКЕИ ","утверждено в муниципальном задании на год ","утверждено в муниципальном задании на отчетную дату ","исполнено на отчетную дату "]
[1,2,3,4,5,6,7,8,9,10,11,12,13,14,15]
[{"$nulls":12},{"$f":"J18*5%","v":0},{"$f":"IF((J18-M18-L18)<0,0,J18-M18-L18)","v":0}]
[{"$nulls":12},{"$f":"J19*5%","v":0},{"$f":"IF((J19-M19-L19)<0,0,J19-M19-L19)","v":0}]
[{"$nulls":12},{"$f":"J20*5%","v":0},{"$f":"IF((J20-M20-L20)<0,0,J20-M20-L20)","v":0}]
[{"$nulls":12},{"$f":"J21*5%","v":0},{"$f":"IF((J21-M21-L21)<0,0,J21-M21-L21)","v":0}]
{"$rows_empty":10}
["3.2. Сведения о фактическом достижении показателей, характеризующих объем муниципальной услуги"]
["Уникальный номер реестровой записи","Показатель, характеризующий содержание работы",null,null,"Показатель, характеризующий условия (формы) выполнения работы",null,"Показатель объема работы",{"$nulls":8},"Размер платы (цена, тариф)"]
[{"$nulls":6},"наименование показателя","единица измерения",null,"значение",null,null,"допустимое (возможное) отклонение ","отклонение, превышающее допустимое (возможное) отклонение ","причина отклонения"]
[null,"наименование показателя","наименование показателя","наименование показателя","наименование показателя","наименование показателя",null,"наименование","код по ОКЕИ ","утверждено в муниципальном задании на год ","утверждено в муниципальном задании на отчетную дату ","исполнено на отчетную дату "]
[1,2,3,4,5,6,7,8,9,10,11,12,13,14,15,16]
[{"$nulls":12},{"$f":"J37*5%","v":0},{"$f":"IF((J37-M37-L37)<0,0,J37-M37-L37)","v":0}]

{"sheet":"Часть 2 (4)","index":11,"n_rows":37,"n_cols":16,"rows_kept":37,"hidden":true,"merged":[[0,0,0,15],[4,0,4,2],[4,7,5,8],[4,9,5,9],[5,0,5,5],[6,0,6,2],[7,0,7,2],[8,0,8,7],[9,0,9,2],[10,0,10,2],[11,0,11,7],[13,0,15,0],[13,1,14,3],[13,4,14,5],[13,6,13,15],[14,6,15,6],[14,7,14,8],[14,9,14,11],[14,12,15,12],[14,13,15,13],[14,14,15,15],[16,14,16,15],[17,0,20,0],[17,1,20,1],[17,2,20,2],[17,3,20,3],[17,4,20,4],[17,5,20,5],[17,14,17,15],[18,14,18,15],[19,14,19,15],[20,14,20,15],[32,0,34,0],[32,1,33,3],[32,4,33,5],[32,6,32,14],[32,15,34,15],[33,6,34,6],[33,7,33,8],[33,9,33,11],[33,12,34,12],[33,13,34,13],[33,14,34,14]]}
["Часть 2. Сведения о выполняемых работах"]
[]
[{"$nulls":7},"Раздел ____"]
[]
["1. Наименование работы:",{"$nulls":6},"Код по общероссийскому базовому перечню или региональному перечню"]
[]
["2. Категории потребителей работы:"]
[]
["3. Сведения о фактическом достижении показателей, характеризующих объем и качество муниципальной услуги"]
["2. Категории потребителей муниципальной услуги:"]
[]
["3. Сведения о фактическом достижении показателей, характеризующих объем и качество работы"]
["3.1. Сведения о фактическом достижении показателей, характеризующих качество работы"]
["Уникальный номер реестровой записи","Показатель, характеризующий содержание работы",null,null,"Показатель, характеризующий условия (формы) выполнения работы",null,"Показатель качества работы"]
[{"$nulls":6},"наименование показателя","единица измерения",null,"значение",null,null,"допустимое (возможное) отклонение ","отклонение, превышающее допустимое (возможное) отклонение ","причина отклонения"]
[null,"наименование показателя","наименование показателя","наименование показателя","наименование показателя","наименование показателя",null,"наименование","код по ОКЕИ ","утверждено в муниципальном задании на год ","утверждено в муниципальном задании на отчетную дату ","исполнено на отчетную дату "]
[1,2,3,4,5,6,7,8,9,10,11,12,13,14,15]
[{"$nulls":12},{"$f":"J18*5%","v":0},{"$f":"IF((J18-M18-L18)<0,0,J18-M18-L18)","v":0}]
[{"$nulls":12},{"$f":"J19*5%","v":0},{"$f":"IF((J19-M19-L19)<0,0,J19-M19-L19)","v":0}]
[{"$nulls":12},{"$f":"J20*5%","v":0},{"$f":"IF((J20-M20-L20)<0,0,J20-M20-L20)","v":0}]
[{"$nulls":12},{"$f":"J21*5%","v":0},{"$f":"IF((J21-M21-L21)<0,0,J21-M21-L21)","v":0}]
{"$rows_empty":10}
["3.2. Сведения о фактическом достижении показателей, характеризующих объем муниципальной услуги"]
["Уникальный номер реестровой записи","Показатель, характеризующий содержание работы",null,null,"Показатель, характеризующий условия (формы) выполнения работы",null,"Показатель объема работы",{"$nulls":8},"Размер платы (цена, тариф)"]
[{"$nulls":6},"наименование показателя","единица измерения",null,"значение",null,null,"допустимое (возможное) отклонение ","отклонение, превышающее допустимое (возможное) отклонение ","причина отклонения"]
[null,"наименование показателя","наименование показателя","наименование показателя","наименование показателя","наименование показателя",null,"наименование","код по ОКЕИ ","утверждено в муниципальном задании на год ","утверждено в муниципальном задании на отчетную дату ","исполнено на отчетную дату "]
[1,2,3,4,5,6,7,8,9,10,11,12,13,14,15,16]
[{"$nulls":12},{"$f":"J37*5%","v":0},{"$f":"IF((J37-M37-L37)<0,0,J37-M37-L37)","v":0}]

{"sheet":"Часть 3","index":12,"n_rows":26,"n_cols":14,"rows_kept":26,"merged":[[3,0,3,13],[4,0,4,13],[5,0,5,13],[6,0,6,13],[7,0,7,13],[8,0,8,13],[10,0,10,13],[12,0,14,0],[12,1,14,1],[12,2,12,4],[12,5,12,7],[12,8,12,10],[12,11,12,13],[13,2,14,2],[13,3,13,4],[13,5,14,5],[13,6,13,7],[13,8,14,8],[13,9,13,10],[13,11,14,11],[13,12,13,13],[18,0,18,1],[20,0,20,1],[20,5,20,7],[21,5,21,7],[22,0,22,1],[22,5,22,7],[23,5,23,7],[25,0,25,1]]}
[]
[]
[]
["Часть 3. Отчет о финансовом обеспечении муниципального "]
[{"$f":"\"на \"&TEXT(надату,\"[$-F800]ДДДД, ММММ ДД, ГГГГ\")","v":"на 1 января 2023 г."}]
[]
[]
[]
[]
[]
[]
["Единица измерения: тыс. руб."]
["Наименование муниципальной услуги (работы)","Утвержденный объем финансирования","Остаток неиспользованных средств на начало отчетного периода",null,null,"Поступило средств",null,null,"Произведено расходов (кассовые расходы)",null,null,"Остаток неиспользованных средств на конец отчетного периода"]
[null,null,"всего","в том числе:",null,"всего","в том числе:",null,"всего","в том числе:",null,"всего","в том числе:"]
[{"$nulls":3},"за счет средств бюджета города Перми","за счет межбюджетных трансфертов",null,"за счет средств бюджета города Перми","за счет межбюджетных трансфертов",null,"за счет средств бюджета города Перми","за счет межбюджетных трансфертов",null,"за счет средств бюджета города Перми","за счет межбюджетных трансфертов"]
[1,2,3,4,5,6,7,8,9,10,11,12,13,14]
["Реализация дополнительных общеразвивающих программ",1977,{"$f":"D17+E17","v":0},null,null,{"$f":"G17+H17","v":{"v":1977,"d":"1,977.00 "}},1977,null,{"$f":"J17+K17","v":{"v":1977,"d":"1,977.00 "}},1977,null,{"$f":"M17+N17","v":0},{"$f":"D17+G17-J17","v":0},{"$f":"E17+H17-K17","v":0}]
["Реализация дополнительных предпрофессиональных программ в области искусств",27907.2,{"$f":"D18+E18","v":{"v":57.86,"d":"57.86 "}},57.86,null,{"$f":"G18+H18","v":{"v":27907.2,"d":"27,907.20 "}},27907.2,null,{"$f":"J18+K18","v":{"v":27943.97,"d":"27,943.97 "}},27943.97,null,{"$f":"M18+N18","v":{"v":21.090000000000146,"d":"21.09 "}},{"$f":"D18+G18-J18","v":{"v":21.090000000000146,"d":"21.09 "}},{"$f":"E18+H18-K18","v":0}]
["Всего",null,{"$f":"SUM(C17:C18)","v":{"v":57.86,"d":"57.86 "}},{"v":57.86,"d":"57.86 "},0,{"v":29884.2,"d":"29,884.20 "},{"v":29884.2,"d":"29,884.20 "},0,{"v":29920.97,"d":"29,920.97 "},{"v":29920.97,"d":"29,920.97 "},0,{"v":21.090000000000146,"d":"21.09 "},{"v":21.090000000000146,"d":"21.09 "},0]
[]
["Руководитель (уполномоченное лицо) учреждения",{"$nulls":4},""]
[{"$nulls":3},"(подпись)",null,"(расшифровка подписи)"]
["Исполнитель (лицо, ответственное за составление отчета)",{"$nulls":4},""]
[{"$nulls":3},"(подпись)",null,"(расшифровка подписи)"]
[]
["\"___\" ______________ 20__ года"]

{"sheet":"коды субсибий","index":13,"n_rows":26,"n_cols":2,"rows_kept":26,"hidden":true,"merged":[[0,0,0,1]]}
["Субсидия"]
["код","Наименование"]
[2,1]
[901010000,"Мероприятия, направленные на решение отдельных вопросов местного значения в микрорайонах города Перми"]
[901010027,"Софинансирование проектов инициативного бюджетирования"]
[901010047,"Организация и проведение фестиваля Мартина МакДонаха"]
[901010056,"Выполнение работ по сохранению объектов культурного наследия, находящихся в собственности муниципальных образований"]
[901010057,"Проведение экологического фестиваля МАУК \"ПермьПарк\""]
[901010058,"Освещение деятельности в сфере культуры посредством размещения публикаций о мероприятиях, направленных на укрепление гражданской идентичности и духовно-нравственных ценностей"]
[901020000,"Меры социальной поддержки педагогических работников - средства г. Перми"]
[901030000,"Обеспечение работников путевками на санаторно-курортное лечение и оздоровление-средства г. Перми"]
[901050000,"Мероприятия по первичной профилактике употребления психоактивных веществ"]
[901090000,"Приведение в нормативное состояние подведомственных учреждений ДКМП"]
[901100000,"Мероприятия по поддержке одаренных детей города Перми"]
[901110000,"Мероприятия в области культуры социальной направленности"]
[901120000,"Культурно-зрелищные мероприятия"]
[901130000,"Целевая субсидия на поддержку инициативной и талантливой молодежи"]
[901240000,"Оборудование объектов социальной инфраструктуры средствами беспрепятственного доступа"]
[901340000,"Расходы, связанные с созданием театральных постановок и концертных программ"]
[901390000,"Повышение фонда оплаты труда"]
[901490000,"Обеспечение работников путевками на санаторно-курортное лечение и оздоровление-средства Пермского края"]
[901550000,"Целевая субсидия на проведение ремонтно-реставрационных работ по приведению в нормативное состояние объектов культурного наследия и монументального искусства"]
[901580000,"Мероприятия по содействию формированию гармоничной межнациональной ситуации в городе Перми"]
[901590000,"Мероприятия по содействию формированию гармоничной межконфессиональной ситуации в городе Перми"]
[901750000,"Оплата взносов на капитальный ремонт"]
[901780000,"Целевая субсидия Дворцу молодежи на организацию занятости молодежи"]

{"sheet":"коды КБК","index":14,"n_rows":59,"n_cols":8,"rows_kept":59,"hidden":true,"merged":[[0,0,0,5]]}
["Код бюджетной классификации Российской Федерации "]
[null,null,3]
["КВСР","КФСР","КЦСР","КВР","Доп. ФК","Доп. ЭК",null,"Код бюджетной классификации Российской Федерации"]
["924","0703","0330101070","622","34000000","110000000000",null,{"$f":"\"\" & A4 & \" \" & B4 & \" \" & C4 & \" \" & D4 & \" \" & E4 & \" \" & F4","v":"924 0703 0330101070 622 34000000 110000000000"}]
["924","0703","0330123560","622","34000000","110000000000",null,{"$f":"\"\" & A5 & \" \" & B5 & \" \" & C5 & \" \" & D5 & \" \" & E5 & \" \" & F5","v":"924 0703 0330123560 622 34000000 110000000000"}]
["924","0703","0340101060","622","34000000","110000000000",null,"924 0703 0340101060 622 34000000 110000000000"]
["924","0703","0340122140","622","34000000","110000000000",null,"924 0703 0340122140 622 34000000 110000000000"]
["924","0703","0340182020","622","34000000","130000000000",null,"924 0703 0340182020 622 34000000 130000000000"]
["924","0703","0620123570","622","32000000","110000000000",null,"924 0703 0620123570 622 32000000 110000000000"]
["924","0707","0120123530","622","81000000","110000000000",null,"924 0707 0120123530 622 81000000 110000000000"]
["924","0707","0210321090","622","82000000","130000000000",null,"924 0707 0210321090 622 82000000 130000000000"]
["924","0707","0410101060","622","34000000","110000000000",null,"924 0707 0410101060 622 34000000 110000000000"]
["924","0707","0410123140","622","34000000","110000000000",null,"924 0707 0410123140 622 34000000 110000000000"]
["924","0707","0420100740","622","34000000","110000000000",null,"924 0707 0420100740 622 34000000 110000000000"]
["924","0707","9160000000","622","34000000","110000000000",null,"924 0707 9160000000 622 34000000 110000000000"]
["924","0709","0340100680","622","34000000","110000000000",null,"924 0709 0340100680 622 34000000 110000000000"]
["924","0709","9160000000","622","34000000","110000000000",null,"924 0709 9160000000 622 34000000 110000000000"]
["924","0801","0110121330","622","81000000","110000000000",null,"924 0801 0110121330 622 81000000 110000000000"]
["924","0801","011012Р080","622","81000000","111000000000",null,"924 0801 011012Р080 622 81000000 111000000000"]
["924","0801","011012Р080","622","81000000","211000000000",null,"924 0801 011012Р080 622 81000000 211000000000"]
["924","0801","011012Р080","622","81000000","534000000000",null,"924 0801 011012Р080 622 81000000 534000000000"]
["924","0801","0120123520","622","81000000","110000000000",null,"924 0801 0120123520 622 81000000 110000000000"]
["924","0801","0120123530","612","81000000","110000000000",null,"924 0801 0120123530 612 81000000 110000000000"]
["924","0801","0120123530","622","81000000","110000000000",null,"924 0801 0120123530 622 81000000 110000000000"]
["924","0801","0310100720","612","34000000","110000000000",null,"924 0801 0310100720 612 34000000 110000000000"]
["924","0801","0310100720","622","34000000","110000000000",null,"924 0801 0310100720 622 34000000 110000000000"]
["924","0801","0310101060","612","34000000","110000000000",null,"924 0801 0310101060 612 34000000 110000000000"]
["924","0801","0310101060","622","34000000","110000000000",null,"924 0801 0310101060 622 34000000 110000000000"]
["924","0801","031012К030","612","34000000","111000000000",null,"924 0801 031012К030 612 34000000 111000000000"]
["924","0801","031012К030","612","34000000","211000000000",null,"924 0801 031012К030 612 34000000 211000000000"]
["924","0801","031012К030","612","34000000","213000000000",null,"924 0801 031012К030 612 34000000 213000000000"]
["924","0801","0310200810","612","34000000","110000000000",null,"924 0801 0310200810 612 34000000 110000000000"]
["924","0801","0320100870","612","34000000","110000000000",null,"924 0801 0320100870 612 34000000 110000000000"]
["924","0801","0320100870","622","34000000","110000000000",null,"924 0801 0320100870 622 34000000 110000000000"]
["924","0801","0320101060","612","34000000","110000000000",null,"924 0801 0320101060 612 34000000 110000000000"]
["924","0801","0320101060","622","34000000","110000000000",null,"924 0801 0320101060 622 34000000 110000000000"]
["924","0801","0320201060","612","34000000","110000000000",null,"924 0801 0320201060 612 34000000 110000000000"]
["924","0801","0320201060","622","34000000","110000000000",null,"924 0801 0320201060 622 34000000 110000000000"]
["924","0801","0330100750","622","34000000","110000000000",null,"924 0801 0330100750 622 34000000 110000000000"]
["924","0801","0330101070","612","34000000","110000000000",null,"924 0801 0330101070 612 34000000 110000000000"]
["924","0801","0330101070","622","34000000","110000000000",null,"924 0801 0330101070 622 34000000 110000000000"]
["924","0801","0330123560","612","34000000","110000000000",null,"924 0801 0330123560 612 34000000 110000000000"]
["924","0801","0330123560","622","34000000","110000000000",null,"924 0801 0330123560 622 34000000 110000000000"]
["924","0801","0330123560","622","34000000","110001280011",null,"924 0801 0330123560 622 34000000 110001280011"]
["924","0801","0330123560","622","34000000","110003450020",null,"924 0801 0330123560 622 34000000 110003450020"]
["924","0801","03301SК190","622","34000000","111000000000",null,"924 0801 03301SК190 622 34000000 111000000000"]
["924","0801","03301SК190","622","34000000","211000000000",null,"924 0801 03301SК190 622 34000000 211000000000"]
["924","0801","0350101060","622","34000000","110000000000",null,"924 0801 0350101060 622 34000000 110000000000"]
["924","0801","0610221010","612","32000000","110000000000",null,"924 0801 0610221010 612 32000000 110000000000"]
["924","0801","0620123570","612","32000000","110000000000",null,"924 0801 0620123570 612 32000000 110000000000"]
["924","0801","0620123570","622","32000000","110000000000",null,"924 0801 0620123570 622 32000000 110000000000"]
["924","0801","1410922200","622","72000000","110000000000",null,"924 0801 1410922200 622 72000000 110000000000"]
["924","0801","9160000000","612","34000000","110000000000",null,"924 0801 9160000000 612 34000000 110000000000"]
["924","0801","9160000000","622","34000000","110000000000",null,"924 0801 9160000000 622 34000000 110000000000"]
["924","1003","0340182020","622","34000000","130000000000",null,"924 1003 0340182020 622 34000000 130000000000"]
["924","1003","06101SС240","612","32000000","130000000000",null,"924 1003 06101SС240 612 32000000 130000000000"]
["924","1003","06101SС240","612","32000000","211000000000",null,"924 1003 06101SС240 612 32000000 211000000000"]
["924","1003","06101SС240","622","32000000","130000000000",null,"924 1003 06101SС240 622 32000000 130000000000"]
["924","1003","06101SС240","622","32000000","211000000000",null,"924 1003 06101SС240 622 32000000 211000000000"]